fUSD/lending_fUSD_20260301
["ID","MTS","AMOUNT","RATE_DAILY","PERIOD"]
[406945794,1772328641775,-500.0,0.00014175,2]
[406945795,1772328641784,-500.0,0.00014175,2]
[406945796,1772328641794,-500.0,0.00014175,2]
[406945797,1772328641803,-500.0,0.00014175,2]
[406945798,1772328641812,-500.0,0.00014175,2]
[406945799,1772328641822,-500.0,0.00014175,2]
[406945800,1772328641831,-500.0,0.00014175,2]
[406945801,1772328641839,-500.0,0.00014175,2]
[406945802,1772328641849,-500.0,0.00014175,2]
[406945803,1772328641858,-500.0,0.00014175,2]
[406945804,1772328641867,-500.0,0.00014175,2]
[406945805,1772328641878,-500.0,0.00014175,2]
[406945806,1772328641887,-500.0,0.00014175,2]
[406945807,1772328641896,-500.0,0.00014175,2]
[406945808,1772328641905,-500.0,0.00014175,2]
[406945809,1772328641914,-508.7549201,0.00014175,2]
[406945810,1772328641923,-500.0,0.00014175,2]
[406945811,1772328641932,-500.0,0.00014175,2]
[406945812,1772328641942,-500.0,0.00014175,2]
[406945813,1772328641951,-500.0,0.00014175,2]
[406945814,1772328641960,-550.0,0.00014175,2]
[406945815,1772328641969,-500.0,0.00014175,2]
[406945816,1772328641979,-500.0,0.00014175,2]
[406945817,1772328641988,-500.0,0.00014175,2]
[406945818,1772328641998,-500.0,0.00014175,2]
[406945819,1772328642007,-500.0,0.00014175,2]
[406945820,1772328642017,-500.0,0.00014175,2]
[406945821,1772328642027,-389.5005398,0.00014187,2]
[406945822,1772328642036,-167.97851849,0.00014187,2]
[406945823,1772328642046,-8190.51,0.00014287,2]
[406945824,1772328642054,-166.66,0.000143,2]
[406945825,1772328642064,-1852.42,0.00014341,2]
[406945826,1772328642074,-521.62,0.00014441,2]
[406945827,1772328642083,-5531.87588106,0.0001446,2]
[406945828,1772328642092,-5000.0,0.0001446,2]
[406945829,1772328642101,-7901.6734221,0.00014511,2]
[406945830,1772328642111,-3502.31211418,0.00014559,2]
[406945831,1772328642120,-600.0,0.00014621,2]
[406945832,1772328642130,-600.0,0.00014621,2]
[406945833,1772328642139,-600.0,0.00014621,2]
[406945834,1772328642148,-600.0,0.00014621,2]
[406945835,1772328642158,-600.0,0.00014621,2]
[406945836,1772328642167,-2500.0,0.00014621,2]
[406945837,1772328642176,-2500.0,0.00014621,2]
[406945838,1772328642185,-2500.0,0.00014621,2]
[406945839,1772328642195,-2500.0,0.00014621,2]
[406945840,1772328642205,-2500.0,0.00014621,2]
[406945841,1772328642215,-1394.01146827,0.00014632,2]
[406945842,1772328642224,-521.62,0.00014715,2]
[406945843,1772328642234,-395.21582723,0.00014723,2]
[406945844,1772328642243,-166.66,0.00014742,2]
[406945845,1772328642394,-420.0,0.00014755,2]
[406945846,1772328642403,-500.0,0.00014773,2]
[406945847,1772328642413,-500.0,0.00014773,2]
[406945848,1772328642423,-310.22607572,0.00014773,2]
[406945849,1772328642432,-500.0,0.00014773,2]
[406945850,1772328642441,-500.0,0.00014773,2]
[406945851,1772328642452,-500.0,0.00014773,2]
[406945852,1772328642461,-500.0,0.00014773,2]
[406945853,1772328642470,-500.0,0.00014773,2]
[406945854,1772328642480,-500.0,0.00014773,2]
[406945855,1772328642489,-541.26009197,0.00014773,2]
[406945856,1772328642499,-500.0,0.00014773,2]
[406945857,1772328642508,-500.0,0.00014773,2]
[406945858,1772328642517,-500.0,0.00014773,2]
[406945859,1772328642527,-500.97270848,0.00014773,2]
[406945860,1772328642536,-500.0,0.00014773,2]
[406945861,1772328642545,-500.0,0.00014773,2]
[406945862,1772328642556,-186.06,0.00014789,2]
[406945863,1772328642566,-2214.52518145,0.0001485,2]
[406945864,1772328642575,-500.0,0.00014899,2]
[406945865,1772328642584,-500.0,0.00014899,2]
[406945866,1772328642594,-269.917619,0.00014899,2]
[406945867,1772328642603,-500.0,0.00014899,2]
[406945868,1772328642612,-447.26161919,0.00014899,2]
[406945869,1772328642622,-194.24097534,0.00014899,2]
[406945870,1772328642634,-668.65185757,0.00014899,2]
[406945871,1772328642642,-500.0,0.00014899,2]
[406945872,1772328642651,-151.0,0.00014899,2]
[406945873,1772328642660,-500.0,0.00014899,2]
[406945874,1772328642670,-500.0,0.00014899,2]
[406945875,1772328642679,-500.0,0.00014899,2]
[406945876,1772328642688,-500.0,0.00014899,2]
[406945877,1772328642697,-500.0,0.00014899,2]
[406945878,1772328642706,-500.0,0.00014899,2]
[406945879,1772328642716,-500.0,0.00014899,2]
[406945880,1772328642725,-500.0,0.00014899,2]
[406945881,1772328642735,-250.0,0.00014899,2]
[406945882,1772328642744,-500.0,0.00014899,2]
[406945883,1772328642754,-278.44613912,0.00014899,2]
[406945884,1772328642763,-151.0,0.00014899,2]
[406945885,1772328642772,-500.0,0.00014899,2]
[406945886,1772328642781,-500.0,0.00014899,2]
[406945887,1772328642791,-267.46074303,0.00014899,2]
[406945888,1772328642799,-160.80547612,0.00014908,2]
[406945889,1772328642810,-7901.6734221,0.00014934,2]
[406945890,1772328642819,-693.3919763,0.00014954,2]
[406945891,1772328642828,-151.0,0.00014954,2]
[406945892,1772328642837,-3502.31211418,0.00014976,2]
[406945893,1772328642847,-521.62,0.00014989,2]
[406945894,1772328642856,-1000.0,0.00015,2]
[406945895,1772328642865,-4094.73,0.00015,7]
[406945896,1772328642875,-250.0,0.00015,2]
[406945897,1772328642884,-719.04747942,0.00015009,2]
[406945898,1772328642893,-151.0,0.00015009,2]
[406945899,1772328642902,-150.0,0.00015021,2]
[406945900,1772328642912,-150.0,0.00015021,2]
[406945901,1772328642921,-150.0,0.00015021,2]
[406945902,1772328642931,-745.65223616,0.00015064,2]
[406945903,1772328642940,-151.0,0.00015064,2]
[406945904,1772328642949,-151.0,0.00015083,2]
[406945905,1772328642958,-32475.4703393,0.00015086,2]
[406945906,1772328642967,-86977.01648606,0.00015086,2]
[406945907,1772328642981,-19436.80445432,0.00015086,2]
[406945941,1772328643679,-353.199528,0.00013573,2]
[406945942,1772328643688,-80.00448051,0.00015086,2]
[406945943,1772328643699,-1018.07232,0.00015086,2]
[406945944,1772328643711,-5674.3699994,0.00015086,2]
[406945945,1772328643723,-595.73837743,0.00015086,2]
[406945946,1772328643784,-5503.04525199,0.00015086,2]
[406945952,1772328646502,-26259.90910519,0.00015086,2]
[406945953,1772328646512,-1547.1507463,0.00015086,2]
[406945954,1772328646523,-255.0,0.00015093,2]
[406945955,1772328646541,-500.0,0.00015099,2]
[406945956,1772328646556,-773.2413689,0.00015119,2]
[406945957,1772328646566,-500.0,0.0001512,2]
[406945958,1772328646576,-160.0,0.00015121,3]
[406945959,1772328646586,-280.0,0.00015121,3]
[406945960,1772328646598,-801.85129955,0.00015174,2]
[406945961,1772328646608,-1394.01146827,0.00015176,2]
[406945962,1772328646618,-200.0,0.00015181,2]
[406945963,1772328646628,-166.66,0.00015185,2]
[406945964,1772328646640,-299.51142594,0.0001522,2]
[406945965,1772328646653,-200.48857406,0.0001522,2]
[406945966,1772328646662,-151.0,0.00015221,2]
[406945967,1772328646672,-10207.226502,0.00015221,2]
[406945968,1772328646682,-8901.28492349,0.00015221,2]
[406945969,1772328646699,-1122.87087827,0.00015221,2]
[406946081,1772329570088,-175.12,0.000123,2]
[406946082,1772329570113,-195.0,0.000125,2]
[406946083,1772329570139,-254.0,0.000127,2]
[406946084,1772329570163,-500.0,0.000127,2]
[406946085,1772329570190,-423.50620441,0.000127,2]
[406946086,1772329570215,-232.35494773,0.00012867,2]
[406946087,1772329570240,-8019.79610843,0.00012941,2]
[406946088,1772329570263,-500.0,0.00013025,2]
[406946089,1772329570290,-186.17,0.00013063,2]
[406946090,1772329570316,-1000.0,0.00013248,2]
[406946091,1772329570342,-1200.0,0.00013454,2]
[406946092,1772329570367,-150.0,0.00013454,2]
[406946093,1772329570391,-12164.05273943,0.00013455,2]
[406946094,1772329571634,-25000.0,0.00013455,2]
[406946095,1772329572338,-25000.0,0.00013455,2]
[406946096,1772329573033,-25000.0,0.00013455,2]
[406946097,1772329573685,-25000.0,0.00013455,2]
[406946098,1772329574331,-25000.0,0.00013455,2]
[406946099,1772329575147,-25000.0,0.00013455,2]
[406946118,1772329831351,-1600.0,0.00012887,2]
[406946119,1772329831361,-150.0,0.0001289,2]
[406946120,1772329831372,-252.695878,0.00013039,2]
[406946121,1772329831386,-150.0,0.00013454,2]
[406946122,1772329831396,-300.0,0.00013454,2]
[406946123,1772329831406,-1200.0,0.00013454,2]
[406946124,1772329831416,-28446.74642293,0.00013455,2]
[406946125,1772329831450,-915.50478277,0.00013455,2]
[406946126,1772329831505,-1765.81280619,0.00013455,2]
[406946127,1772329831519,-14952.11856863,0.00013455,2]
[406946142,1772329839810,-498.56809228,0.00013455,2]
[406946143,1772329840077,-679.60049232,0.00013455,2]
[406946144,1772329840089,-1058.17281716,0.00013455,2]
[406946145,1772329840101,-1185.8704745,0.00013455,2]
[406946146,1772329840113,-582.23863225,0.00013455,2]
[406946147,1772329840124,-946.05260061,0.00013455,2]
[406946168,1772329842763,-511.0,0.00013455,2]
[406946178,1772329845615,-10041.06157093,0.00013455,2]
[406946179,1772329845626,-993.21600309,0.00013455,2]
[406946180,1772329845636,-161.0,0.00013455,3]
[406946181,1772329845646,-332.0,0.00013455,3]
[406946182,1772329845655,-152.91222234,0.00013599,2]
[406946183,1772329845665,-700.0,0.000136,4]
[406946185,1772329845674,-152.91222231,0.00013695,2]
[406946187,1772329845683,-200.0,0.00013699,2]
[406946189,1772329845693,-4983.55,0.00013699,2]
[406946191,1772329845702,-843.88,0.00013699,2]
[406946193,1772329845712,-161.84,0.000137,2]
[406946195,1772329845721,-1500.0,0.000137,5]
[406946197,1772329845731,-799.42947132,0.00013725,2]
[406946199,1772329845740,-500.0,0.00013756,2]
[406946201,1772329845750,-500.0,0.00013756,2]
[406946203,1772329845759,-5382.01300513,0.00013757,2]
[406946459,1772331030491,-250.0,0.00013,15]
[406946466,1772331031430,-1258.9,0.00011507,2]
[406946468,1772331031443,-1322.42,0.00011507,2]
[406946471,1772331031453,-417.0,0.00012,2]
[406946473,1772331031463,-1292.4431592,0.00012008,2]
[406946475,1772331031485,-559.9768408,0.00012008,2]
[406946476,1772331031495,-558.7,0.00012059,2]
[406946477,1772331031505,-235.75778673,0.0001207,2]
[406946478,1772331031515,-1200.0,0.00012094,2]
[406946479,1772331031525,-3616.61,0.00012095,2]
[406946480,1772331031537,-259.35,0.00012097,2]
[406946481,1772331031547,-166.66,0.00012147,2]
[406946482,1772331031557,-300.0,0.00012402,2]
[406946483,1772331031566,-166.66,0.00012403,2]
[406946484,1772331031575,-398.20941247,0.00012591,2]
[406946485,1772331031587,-1962.07058753,0.00012591,2]
[406946486,1772331031597,-2000.0,0.000126,4]
[406946487,1772331031606,-400.0,0.000126,4]
[406946488,1772331031616,-200.0,0.000126,4]
[406946489,1772331031626,-3606.14607248,0.00012601,2]
[406946490,1772331031638,-393.85392752,0.00012601,2]
[406946491,1772331031647,-195.0,0.00012658,2]
[406946492,1772331031656,-166.66,0.00012658,2]
[406946493,1772331031665,-4100.0,0.000127,4]
[406946494,1772331031673,-800.0,0.000127,4]
[406946495,1772331031682,-400.0,0.000127,4]
[406946496,1772331031692,-302.52490246,0.000127,2]
[406946497,1772331031702,-485.15413244,0.0001279,2]
[406946498,1772331031711,-151.0,0.00012797,2]
[406946499,1772331031720,-6200.0,0.000128,4]
[406946500,1772331031729,-1200.0,0.000128,4]
[406946501,1772331031738,-75724.83937921,0.000128,2]
[406946502,1772331031748,-1254.41808677,0.000128,2]
[406946503,1772331031759,-200412.1943348,0.000128,2]
[406946504,1772331031769,-304.03423716,0.000128,2]
[406946505,1772331031783,-2454.02564704,0.000128,2]
[406946506,1772331031794,-329.34991878,0.000128,2]
[406946507,1772331031805,-14312.28962205,0.000128,2]
[406946508,1772331031814,-1262.12334324,0.000128,2]
[406946510,1772331031825,-305.32838213,0.000128,2]
[406946512,1772331031834,-1013.08682692,0.000128,2]
[406946514,1772331031848,-1561.45240952,0.000128,2]
[406946517,1772331031864,-940.38306014,0.000128,2]
[406946519,1772331031875,-636.65095903,0.000128,2]
[406946521,1772331031886,-6273.48892545,0.000128,2]
[406946523,1772331031897,-702.8148,0.000128,2]
[406946525,1772331031908,-802.43463569,0.000128,2]
[406946528,1772331031919,-323.3292545,0.000128,2]
[406946530,1772331031930,-382.56411821,0.000128,2]
[406946531,1772331031941,-607.56498033,0.000128,2]
[406946532,1772331031951,-598.56,0.000128,2]
[406946533,1772331031962,-4598.7108,0.000128,2]
[406946545,1772331037559,1000.0,0.00017,120]
[406946546,1772331037572,-488.41431202,0.000128,2]
[406946547,1772331037583,-841.41446949,0.000128,2]
[406946548,1772331037594,-70464.81322446,0.000128,2]
[406946549,1772331037605,-6577.9,0.000128,2]
[406946550,1772331037770,-18758.93098925,0.000128,2]
[406946551,1772331037790,-436.75223375,0.000128,2]
[406946552,1772331037803,-177407.02808765,0.000128,2]
[406946686,1772331039702,-1209.29,0.000128,2]
[406946687,1772331039758,-269.4242826,0.000128,2]
[406946688,1772331040444,-4422.11421213,0.000128,2]
[406946689,1772331040499,-604.41176115,0.000128,2]
[406946690,1772331040522,-8490.75715835,0.000128,2]
[406946691,1772331040537,-1963.78146811,0.000128,2]
[406946692,1772331040551,-1893265.32408007,0.000128,2]
[406946693,1772331040560,-600.0,0.000128,4]
[406946694,1772331040572,-474.00986216,0.00012804,2]
[406946695,1772331040582,-321.0,0.00012804,2]
[406946696,1772331040592,-327.75285491,0.00012829,2]
[406946697,1772331040602,-8300.0,0.000129,4]
[406946698,1772331040611,-1600.0,0.000129,4]
[406946699,1772331040622,-800.0,0.000129,4]
[406946700,1772331040632,-166.66,0.00012914,2]
[406946701,1772331040644,-4000.0,0.00012916,2]
[406946702,1772331040655,-4746.37532499,0.00013,15]
[406946703,1772331040665,-150.0,0.00013003,2]
[406946704,1772331040676,-200.0,0.00013003,2]
[406946705,1772331040688,-185.71,0.00013132,2]
[406946706,1772331040698,-501.0,0.00013151,2]
[406946707,1772331040707,-6745.6907,0.00013154,2]
[406946708,1772331040719,-2500.0,0.00013154,2]
[406946709,1772331040729,-152.91222231,0.00013154,2]
[406946710,1772331040742,-3468.37049062,0.00013154,2]
[406946711,1772331040751,-166.66,0.0001317,2]
[406946712,1772331040762,-4000.0,0.00013231,2]
[406946713,1772331040772,-500.0,0.00013246,2]
[406946714,1772331040782,-500.0,0.00013246,2]
[406946715,1772331040794,-500.0,0.00013246,2]
[406946716,1772331040804,-500.0,0.00013246,2]
[406946717,1772331040815,-500.0,0.00013246,2]
[406946718,1772331040825,-500.0,0.00013246,2]
[406946719,1772331040835,-500.0,0.00013246,2]
[406946720,1772331040848,-500.0,0.00013246,2]
[406946721,1772331040858,-500.0,0.00013246,2]
[406946722,1772331040868,-500.0,0.00013246,2]
[406946723,1772331040877,-500.0,0.00013246,2]
[406946724,1772331040887,-523.17251121,0.00013246,2]
[406946725,1772331040896,-151.0,0.00013246,2]
[406946726,1772331040906,-151.0,0.00013246,2]
[406946727,1772331040916,-162.63536239,0.00013246,2]
[406946728,1772331040926,-491.31981352,0.00013251,2]
[406946729,1772331040935,-151.0,0.00013251,2]
[406946730,1772331040945,-1508.05358389,0.00013253,2]
[406946731,1772331040955,-260805.8008,0.00013254,2]
[406946732,1772331040964,-7321.291106,0.00013254,2]
[406946733,1772331040974,-758.0,0.00013303,2]
[406946734,1772331040983,-5997.7313,0.00013315,2]
[406946735,1772331040993,-152.91222231,0.00013325,2]
[406946736,1772331041002,-1150.5176017,0.00013325,2]
[406946737,1772331041011,-161.06280676,0.00013325,2]
[406946738,1772331041021,-1001.23217592,0.00013353,2]
[406946739,1772331041030,-500.0,0.00013354,2]
[406946740,1772331041045,-268.13266961,0.00013354,2]
[406946741,1772331041054,-500.0,0.00013354,2]
[406946742,1772331041064,-500.0,0.00013354,2]
[406946743,1772331041074,-500.0,0.00013354,2]
[406946744,1772331041084,-500.0,0.00013354,2]
[406946745,1772331041093,-500.0,0.00013354,2]
[406946746,1772331041103,-500.0,0.00013354,2]
[406946747,1772331041113,-500.0,0.00013354,2]
[406946748,1772331041122,-500.0,0.00013354,2]
[406946749,1772331041132,-500.0,0.00013354,2]
[406946750,1772331041142,-500.0,0.00013354,2]
[406946751,1772331041151,-500.0,0.00013354,2]
[406946752,1772331041160,-500.0,0.00013354,2]
[406946753,1772331041170,-500.0,0.00013354,2]
[406946754,1772331041179,-500.0,0.00013354,2]
[406946755,1772331041189,-500.0,0.00013354,2]
[406946756,1772331041200,-500.0,0.00013354,2]
[406946757,1772331041210,-500.0,0.00013354,2]
[406946758,1772331041219,-500.0,0.00013354,2]
[406946759,1772331041228,-414.52374573,0.00013354,2]
[406946760,1772331041243,-500.0,0.00013354,2]
[406946761,1772331041252,-500.0,0.00013354,2]
[406946762,1772331041262,-500.0,0.00013354,2]
[406946763,1772331041272,-500.0,0.00013354,2]
[406946764,1772331041282,-500.0,0.00013354,2]
[406946765,1772331041292,-500.0,0.00013354,2]
[406946766,1772331041302,-500.0,0.00013354,2]
[406946767,1772331041312,-500.0,0.00013354,2]
[406946768,1772331041322,-500.0,0.00013354,2]
[406946769,1772331041332,-500.0,0.00013354,2]
[406946770,1772331041342,-500.0,0.00013354,2]
[406946771,1772331041351,-500.0,0.00013354,2]
[406946772,1772331041361,-500.0,0.00013354,2]
[406946773,1772331041370,-500.0,0.00013354,2]
[406946774,1772331041380,-500.0,0.00013354,2]
[406946775,1772331041390,-500.0,0.00013354,2]
[406946776,1772331041400,-500.0,0.00013354,2]
[406946777,1772331041409,-500.0,0.00013354,2]
[406946778,1772331041419,-500.0,0.00013354,2]
[406946779,1772331041430,-438.41122723,0.00013354,2]
[406946780,1772331041439,-500.0,0.00013354,2]
[406946781,1772331041453,-500.0,0.00013354,2]
[406946782,1772331041463,-500.0,0.00013354,2]
[406946783,1772331041473,-500.0,0.00013354,2]
[406946784,1772331041483,-500.0,0.00013354,2]
[406946785,1772331041492,-500.0,0.00013354,2]
[406946786,1772331041502,-500.0,0.00013354,2]
[406946787,1772331041511,-491.45237457,0.00013354,2]
[406946788,1772331041521,-500.0,0.00013354,2]
[406946789,1772331041530,-500.0,0.00013354,2]
[406946790,1772331041541,-500.0,0.00013354,2]
[406946791,1772331041551,-500.0,0.00013354,2]
[406946792,1772331041561,-500.0,0.00013354,2]
[406946793,1772331041570,-500.0,0.00013354,2]
[406946794,1772331041579,-500.0,0.00013354,2]
[406946795,1772331041589,-500.0,0.00013354,2]
[406946796,1772331041598,-500.0,0.00013354,2]
[406946797,1772331041609,-500.0,0.00013354,2]
[406946798,1772331041619,-500.0,0.00013354,2]
[406946799,1772331041629,-469.37795719,0.00013354,2]
[406946800,1772331041641,-500.0,0.00013354,2]
[406946801,1772331041652,-500.0,0.00013354,2]
[406946802,1772331041662,-500.0,0.00013354,2]
[406946803,1772331041672,-500.0,0.00013354,2]
[406946804,1772331041681,-500.0,0.00013354,2]
[406946805,1772331041690,-576.75477132,0.00013354,2]
[406946806,1772331041700,-500.0,0.00013354,2]
[406946807,1772331041708,-500.0,0.00013354,2]
[406946808,1772331041718,-459.33776637,0.00013354,2]
[406946809,1772331041727,-278.85883401,0.00013354,2]
[406946810,1772331041738,-450.0,0.00013354,2]
[406946811,1772331041747,-154.46743359,0.00013354,2]
[406946812,1772331041756,-500.0,0.00013354,2]
[406946813,1772331041765,-374.21795605,0.00013354,2]
[406946814,1772331041775,-500.0,0.00013354,2]
[406946815,1772331041785,-500.0,0.00013354,2]
[406946816,1772331041795,-500.0,0.00013354,2]
[406946817,1772331041805,-500.0,0.00013354,2]
[406946818,1772331041814,-637.54607037,0.00013354,2]
[406946819,1772331041824,-198.83562894,0.00013354,3]
[406946820,1772331041835,-841.56455587,0.00013354,3]
[406946821,1772331041848,-3240.0,0.00013425,2]
[406946822,1772331041857,-166.66,0.00013425,2]
[406946823,1772331041867,-151.0,0.00013442,2]
[406946824,1772331041876,-32408.9354591,0.00013445,2]
[406946825,1772331041886,-1147.6896038,0.00013445,2]
[406946826,1772331041895,-2785.7279677,0.00013445,2]
[406946827,1772331041904,-2366.4282036,0.00013445,2]
[406946828,1772331041913,-9455.9199674,0.00013445,2]
[406946829,1772331041923,-4000.0,0.00013546,2]
[406946830,1772331041932,-420.0,0.00013609,2]
[406946831,1772331041941,-3468.37049055,0.00013681,2]
[406946832,1772331041950,-1041.199,0.00013695,2]
[406946833,1772331041959,-167.889,0.00013695,2]
[406946834,1772331041969,-254.57543086,0.00013699,2]
[406946835,1772331041978,-200.1664799,0.00013739,2]
[406946836,1772331041988,-10780.41699487,0.00013757,2]
[406946837,1772331041997,-206.0,0.00013757,2]
[406946838,1772331042007,-200.0,0.00013757,2]
[406946839,1772331042025,-350.0,0.00013757,3]
[406946840,1772331042036,-161.0,0.00013757,3]
[406946841,1772331042047,-151.0,0.00013757,2]
[406946842,1772331042057,-7321.29110594,0.0001377,2]
[406946843,1772331042067,-31034.8864,0.00013856,2]
[406946844,1772331042076,-1000.0,0.00013856,2]
[406946845,1772331042086,-4000.0,0.00013861,2]
[406946846,1772331042095,-284.09070145,0.00013884,2]
[406946847,1772331042105,-200.0,0.00013895,2]
[406946848,1772331042115,-151.0,0.00013953,2]
[406946849,1772331042124,-666.0,0.00013955,2]
[406946850,1772331042134,-97020.45280863,0.00013956,2]
[406946851,1772331042144,-151.0,0.00013956,2]
[406946852,1772331042154,-151.0,0.00013956,2]
[406946853,1772331042164,-153.248242,0.00013956,2]
[406946854,1772331042174,-263.005987,0.00013956,2]
[406946855,1772331042183,-263.005987,0.00013956,2]
[406946856,1772331042193,-263.005987,0.00013956,2]
[406946857,1772331042207,-263.005987,0.00013956,2]
[406946858,1772331042216,-500.0,0.00013974,2]
[406946859,1772331042226,-500.0,0.00013975,2]
[406946860,1772331042236,-500.0,0.00013975,2]
[406946861,1772331042246,-500.0,0.00013975,2]
[406946862,1772331042255,-500.0,0.00013975,2]
[406946863,1772331042266,-500.0,0.00013975,2]
[406946864,1772331042276,-500.0,0.00013975,2]
[406946865,1772331042285,-500.0,0.00013975,2]
[406946866,1772331042295,-625.05,0.00013975,2]
[406946867,1772331042304,-500.0,0.00013975,2]
[406946868,1772331042314,-500.0,0.00013975,2]
[406946869,1772331042323,-500.0,0.00013975,2]
[406946870,1772331042333,-500.0,0.00013975,2]
[406946871,1772331042343,-500.0,0.00013975,2]
[406946872,1772331042352,-500.0,0.00013975,2]
[406946873,1772331042362,-500.0,0.00013975,2]
[406946874,1772331042371,-500.0,0.00013975,2]
[406946876,1772331042385,-378.66674695,0.00013975,2]
[406946877,1772331042396,-500.0,0.00013975,2]
[406946879,1772331042407,-500.0,0.00013975,2]
[406946881,1772331042417,-500.0,0.00013975,2]
[406946882,1772331042427,-500.0,0.00013975,2]
[406946883,1772331042438,-500.0,0.00013975,2]
[406946884,1772331042449,-500.0,0.00013975,2]
[406946885,1772331042459,-500.0,0.00013975,2]
[406946886,1772331042469,-500.0,0.00013975,2]
[406946887,1772331042481,-255.54529588,0.00013975,2]
[406946888,1772331042493,-151.0,0.00013975,2]
[406946889,1772331042503,-151.0,0.00013975,2]
[406946890,1772331042512,-151.0,0.00013975,2]
[406946892,1772331042522,-151.0,0.00013975,2]
[406946894,1772331042531,-154.107363,0.00013975,2]
[406946896,1772331042543,-200.0,0.00014034,2]
[406946898,1772331042552,-273.38135709,0.00014086,2]
[406946901,1772331042562,-500.0,0.00014086,2]
[406946903,1772331042571,-514.74023041,0.00014086,2]
[406946905,1772331042580,-507.0637494,0.00014086,2]
[406946906,1772331042590,-255.0,0.00014108,2]
[406946908,1772331042599,-528.0,0.0001411,2]
[406946910,1772331042608,-500.0,0.00014175,2]
[406946912,1772331042618,-500.0,0.00014175,2]
[406946913,1772331042627,-500.0,0.00014175,2]
[406946914,1772331042637,-500.0,0.00014175,2]
[406946915,1772331042647,-500.0,0.00014175,2]
[406946916,1772331042656,-500.0,0.00014175,2]
[406946917,1772331042667,-561.29954963,0.00014175,2]
[406946918,1772331042676,-350.0,0.00014191,3]
[406946919,1772331042686,-3468.37049055,0.00014209,2]
[406946920,1772331042695,-484.4008852,0.00014253,2]
[406946921,1772331042705,-484.4008852,0.00014253,2]
[406946922,1772331042714,-9031.18,0.00014258,2]
[406946923,1772331042723,-7321.29110594,0.00014286,2]
[406946924,1772331042733,-12510.6566345,0.0001433,2]
[406946925,1772331042742,-4983.55,0.00014384,2]
[406946926,1772331042755,-500.0,0.00014427,2]
[406946927,1772331042764,-500.0,0.00014427,2]
[406946928,1772331042774,-500.0,0.00014427,2]
[406946929,1772331042783,-500.0,0.00014427,2]
[406946930,1772331042794,-500.0,0.00014427,2]
[406946931,1772331042803,-500.0,0.00014427,2]
[406946932,1772331042813,-500.0,0.00014427,2]
[406946933,1772331042823,-500.0,0.00014427,2]
[406946934,1772331042832,-500.0,0.00014427,2]
[406946935,1772331042842,-500.0,0.00014427,2]
[406946936,1772331042851,-500.0,0.00014427,2]
[406946937,1772331042860,-585.88319395,0.00014427,2]
[406946938,1772331042871,-668.65185757,0.00014427,2]
[406946939,1772331042881,-180.636203,0.0001443,7]
[406946940,1772331042892,-693.3919763,0.00014482,2]
[406946941,1772331042902,-1600.0,0.00014498,2]
[406946942,1772331042912,-719.04747942,0.00014537,2]
[406946943,1772331042921,-284.09070139,0.00014553,2]
[406946944,1772331042931,-745.65223616,0.00014592,2]
[406946945,1772331042944,-350.0,0.00014625,3]
[406946946,1772331042954,-773.2413689,0.00014647,2]
[406946947,1772331042964,-801.85129955,0.00014702,2]
[406946948,1772331042973,-3468.37049055,0.00014736,2]
[406946949,1772331042983,-831.51979763,0.00014757,2]